Cogmind - Beta 14 @@@ ROGUE MODE // 2024.12.17 @ 22:45:58 Player: Alien Result: Destroyed by S-43 Plague with Heavy Machine Gun Performance ------------- Evolutions (8) 4000 Regions Visited (15) 3000 Robots Destroyed (106) 530 Value Destroyed (2457) 2457 Prototype IDs (22) 440 Alien Tech Used (0) 0 Bonus (408) 408 TOTAL SCORE: 10835 Bonus ------- High Alert Combat Kills 63 Follower Combat Kills 45 Registered with UFD 300 Cogmind --------- Core Integrity 0/1450 Matter 111/300 Energy 100/100 System Corruption 6% Temperature Cool (0) Movement Core (50) Location -2/Research Parts ------- > --- POWER (2) -------- (None) > --- PROPULSION (6) --- (None) > --- UTILITY (12) ----- (None) > --- WEAPON (3) ------- (None) > --- INVENTORY (5) ---- Light Quantum Reactor Advanced Sensor Array Advanced Actuator Array Improved Force Field Enhanced Nova Cannon Peak State ------------ > --- POWER ------------ (None) > --- PROPULSION ------- Improved VTOL Module Improved VTOL Module Improved VTOL Module Impulse Thruster Impulse Thruster Array > --- UTILITY ---------- Energy Well Enhanced Optical Array Advanced Sensor Array Advanced Signal Interpreter Advanced Actuator Array Hacking Suite Hacking Suite Hacking Suite Hacking Suite > --- WEAPON ----------- Enhanced Quantum Rifle Disruptor Cannon Precision Rocket Launcher > --- INVENTORY -------- Advanced Sensor Array [Rating: 95] Favorites ----------- Power Heavy Ion Engine Engine Heavy Ion Engine Power Core Improved Fusion Compressor Reactor Light Antimatter Reactor Propulsion Armored Treads Treads Armored Treads Flight Unit Improved VTOL Module Utility Large Storage Unit Device Hardlight Generator Storage Large Storage Unit Processor Advanced Targeting Computer Hackware Hacking Suite Protection Improved Light Armor Plating Weapon Plasma Cannon Energy Gun Small Laser Energy Cannon Plasma Cannon Ballistic Gun Enhanced Autogun Ballistic Cannon Improved Light Cannon Launcher Grenade Launcher Special Weapon Plasma Cutter Impact Weapon Heavy Flail Slashing Weapon Chainsword Special Melee Weapon Improved Datajack Build | -11 -10 -9 -8 -8 -8 -8 -6 -5 -4 -4 -4 -4 -4 -3 -2 ------- Run | Yrd Mat Mat Mat Sto Rec Scr Fac Fac Fac Ext Cet Arc Hub Res Res Slots Evolved 16 | . . 2 2 . . . 4 2 2 . . . . 2 2 Power 1 | . . . . . . . . 1 . . . . . . . Propulsion 4 | . . 1 1 . . . 1 . . . . . . . 1 Utility 10 | . . 1 1 . . . 3 1 2 . . . . 1 1 Weapon 1 | . . . . . . . . . . . . . . 1 . Parts Attached 145 | 6 10 24 14 23 1 2 24 12 6 3 4 . . 5 11 Power 15 | 1 1 3 1 . . . 2 3 1 1 1 . . . 1 Engine 9 | 1 1 3 1 . . . 1 2 . . . . . . . Core 3 | . . . . . . . . 1 . 1 1 . . . . Reactor 3 | . . . . . . . 1 . 1 . . . . . 1 Propulsion 33 | 2 2 7 7 . . . 7 3 . . . . . 2 3 Treads 17 | 2 2 7 6 . . . . . . . . . . . . Leg . | . . . . . . . . . . . . . . . . Wheel . | . . . . . . . . . . . . . . . . Hover . | . . . . . . . . . . . . . . . . Flight 16 | . . . 1 . . . 7 3 . . . . . 2 3 Utility 51 | 1 4 5 4 4 1 2 11 6 3 2 1 . . 2 5 Device 23 | . 2 . 1 1 . 1 7 3 1 2 . . . 2 3 Storage 3 | 1 . 1 . . . . 1 . . . . . . . . Processor 10 | . 2 1 1 . 1 . 2 2 1 . . . . . . Hackware 6 | . . . . . . . 1 1 1 . 1 . . . 2 Protection 9 | . . 3 2 3 . 1 . . . . . . . . . Artifact . | . . . . . . . . . . . . . . . . Weapon 46 | 2 3 9 2 19 . . 4 . 2 . 2 . . 1 2 Energy Gun 4 | 1 1 1 . . . . . . . . . . . . 1 Energy Cannon 7 | . . 2 1 2 . . 1 . . . . . . . 1 Ballistic Gun 13 | 1 1 2 1 8 . . . . . . . . . . . Ballistic Cannon 2 | . . 2 . . . . . . . . . . . . . Launcher 12 | . 1 2 . 5 . . 1 . 1 . 1 . . 1 . Special Weapon 2 | . . . . 2 . . . . . . . . . . . Impact Weapon 2 | . . . . 2 . . . . . . . . . . . Slashing Weapon 1 | . . . . . . . 1 . . . . . . . . Piercing Weapon . | . . . . . . . . . . . . . . . . Special Melee Weapon 3 | . . . . . . . 1 . 1 . 1 . . . . Unidentified Prototypes 13 | . . 3 . 4 . . 2 2 . . . . . 1 1 Corrupted Parts 1 | . . . . . . . . 1 . . . . . . . System Corruption 4 | . . . . . . . . 4 . . . . . . . Parts Lost 36 | . . 5 1 . . . . . . 3 2 4 . . 21 Power 6 | . . 3 . . . . . . . 1 . . . . 2 Propulsion 12 | . . 1 1 . . . . . . 1 . 2 . . 7 Utility 12 | . . . . . . . . . . 1 1 1 . . 9 Weapon 6 | . . 1 . . . . . . . . 1 1 . . 3 Highest Loss Streak 13 | . . 1 1 . . . . . . 3 2 4 . . 13 To Critical Strikes . | . . . . . . . . . . . . . . . . Average Slot Usage (%) 93 | . 96 88 95 99 99 100 99 95 94 94 91 76 63 66 62 Engine 8 | . 14 4 8 9 9 9 6 8 5 5 5 5 5 4 . Treads 25 | . 28 31 31 36 36 36 . . . . . . . . . Flight 6 | . . . . . . . 32 29 26 24 21 16 10 16 18 Device 8 | . 6 . 8 9 6 5 17 18 17 19 18 15 15 14 9 Storage 8 | . 14 11 9 9 9 9 6 5 5 5 5 5 5 4 3 Processor 10 | . 4 10 9 9 11 12 11 14 15 15 15 11 10 9 7 Hackware 2 | . . . . . . . 5 5 8 10 12 15 15 14 15 Protection 5 | . . 8 8 8 9 9 3 . . . . . . . . Energy Gun 2 | . 17 1 . . . . . . . . . . . . . Energy Cannon 5 | . . 2 9 8 9 9 4 . . . . . . . 2 Ballistic Gun 5 | . 5 5 6 7 9 9 . . . . . . . . . Launcher 2 | . 4 11 2 . . . . . . . . . . 2 2 Peak Build Rating 95 | 6 8 17 33 37 38 39 63 75 90 87 86 78 55 85 95 Average Rating 36 | 5 7 11 27 33 37 36 54 66 81 80 80 67 55 76 81 On Entrance 46 | . 6 8 17 33 37 38 36 60 73 87 83 78 55 55 84 Naked Turns 4 | . . . . . . . . . . . . . . . 4 Heaviest Build 50 | 14 14 42 50 50 46 41 27 26 37 31 31 28 18 26 36 Greatest Support 80 | 40 40 60 80 80 80 80 37 38 38 38 32 32 22 29 38 Greatest Overweight (x) 11 | 1 . . 1 . . . 2 6 . . . . . . 11 Average Overweight (x) . | . . . . . . . . . . . . . . . . Largest Inventory Capacity 15 | 8 8 15 15 15 15 15 15 5 5 5 5 5 5 5 5 Average Capacity 11 | 7 8 12 15 15 15 15 5 5 5 5 5 5 5 5 5 Most Carried 15 | 2 8 15 15 15 15 15 15 5 5 5 5 5 5 5 5 Average Carried 11 | 1 7 11 14 14 14 14 5 4 4 4 4 4 5 4 2 Final Capacity 15 | 8 8 15 15 15 15 15 5 5 5 5 5 5 5 5 5 Final Carried 15 | 2 8 15 15 15 15 15 5 5 5 5 4 5 5 5 5 Class Distribution -------------------- 71% | Mutant 10% | Hacker-Scout 4% | Scavenger-Mutant 4% | Scout Dominant Class ---------------- Mutant | -10/Materials Mutant | -9/Materials Mutant | -8/Materials Mutant | -8/Storage Mutant | -8/Recycling Mutant | -8/Scraptown Scout | -6/Factory Scavenger-Scout | -5/Factory Hacker-Scout | -4/Factory Hacker-Scout | -4/Extension Hacker-Scout | -4/Cetus Hacker-Scout | -4/Archives Hacker-Scout | -4/Hub_04(d) Hacker-Scout | -3/Research Hacker-Skirmisher | -2/Research Resources | -11 -10 -9 -8 -8 -8 -8 -6 -5 -4 -4 -4 -4 -4 -3 -2 ----------- Run | Yrd Mat Mat Mat Sto Rec Scr Fac Fac Fac Ext Cet Arc Hub Res Res Matter Collected 2121 | 260 137 370 469 354 10 20 250 147 13 . . . . . 91 Remotely . | . . . . . . . . . . . . . . . . Salvage Created 3611 | . 791 611 467 734 249 . 413 142 162 . . . . . 42 Parts 213 | . 44 46 27 57 7 . 13 9 8 . . . . . 2 Haulers Intercepted 15 | . 2 4 . 5 . . 3 . 1 . . . . . . Recyclers Shooed 3 | . 1 1 . 1 . . . . . . . . . . . Parts Field Recycled . | . . . . . . . . . . . . . . . . Retrieved Matter . | . . . . . . . . . . . . . . . . Parts Self-Destructed . | . . . . . . . . . . . . . . . . Prevented . | . . . . . . . . . . . . . . . . Kills | -11 -10 -9 -8 -8 -8 -8 -6 -5 -4 -4 -4 -4 -4 -3 -2 ------- Run | Yrd Mat Mat Mat Sto Rec Scr Fac Fac Fac Ext Cet Arc Hub Res Res Combat Hostiles Destroyed 65 | . 17 17 15 15 . . 1 . . . . . . . . Guns 28 | . 17 6 4 1 . . . . . . . . . . . Cannons 11 | . . 1 5 5 . . . . . . . . . . . AOE 26 | . . 10 6 9 . . 1 . . . . . . . . Classes Destroyed 12 | . 8 2 1 . . . 1 . . . . . . . . Worker 7 | . 1 2 1 1 . . . . . . . . . . 2 Builder 1 | . . 1 . . . . . . . . . . . . . Tunneler 2 | . 1 1 . . . . . . . . . . . . . Hauler 15 | . 2 4 . 5 . . 3 . 1 . . . . . . Recycler 6 | . 2 . . 1 3 . . . . . . . . . . Operator 2 | . 1 . . . . . 1 . . . . . . . . Watcher 8 | . 1 . . . . . 2 4 1 . . . . . . Swarmer 25 | . 6 4 7 8 . . . . . . . . . . . Grunt 26 | . 11 8 5 2 . . . . . . . . . . . Brawler 1 | . . . 1 . . . . . . . . . . . . Sentry 12 | . . 5 2 5 . . . . . . . . . . . Programmer 1 | . . . . . . . 1 . . . . . . . . Best Kill Streak 9 | . 9 9 5 7 3 . 1 2 1 . . . . . 2 Combat Bots Only 8 | . 8 5 4 6 . . 1 . . . . . . . . Max Kills in Single Turn 4 | . 1 3 3 4 1 . 1 1 1 . . . . . 1 Gunslinging . | . . . . . . . . . . . . . . . . Exploded 3 | . . 1 3 3 . . 1 . . . . . . . . Melee . | . . . . . . . . . . . . . . . . Uniques/NPCs Destroyed . | . . . . . . . . . . . . . . . . Combat | -11 -10 -9 -8 -8 -8 -8 -6 -5 -4 -4 -4 -4 -4 -3 -2 -------- Run | Yrd Mat Mat Mat Sto Rec Scr Fac Fac Fac Ext Cet Arc Hub Res Res Hostile Shots Fired 553 | . 99 67 101 51 6 . 12 . . 17 18 29 . 9 144 Missed 205 | . 26 16 25 22 2 . 9 . . 11 11 15 . 4 64 Damage Taken 6361 | . 776 699 667 374 63 . 36 201 44 205 201 378 . 132 2585 Core 2149 | . 194 79 20 57 . . 14 127 2 46 53 100 . . 1457 Absorbed by Shields 312 | . . . 272 40 . . . . . . . . . . . Regen/Repaired (Parts) 276 | . . 39 108 66 . . 38 25 . . . . . . . Core Remaining (%) 81 | 100 22 80 . . . 86 98 87 . . . . 82 100 . Volleys Fired 278 | . 112 57 45 45 6 . 3 . 4 . . . . 2 4 Largest 2 | . 2 2 2 2 1 . 1 . 1 . . . . 1 1 Hottest 110 | . 90 69 103 110 80 . 80 . 43 . . . . 43 81 Shots Fired 389 | . 168 66 72 64 6 . 3 . 4 . . . . 2 4 Gun 247 | . 168 24 37 18 . . . . . . . . . . . Cannon 90 | . . 9 31 39 6 . 1 . . . . . . . 4 Launcher 52 | . . 33 4 7 . . 2 . 4 . . . . 2 . Special . | . . . . . . . . . . . . . . . . Kinetic 89 | . 18 16 37 18 . . . . . . . . . . . Thermal 244 | . 150 17 31 39 6 . 1 . . . . . . . . Explosive 52 | . . 33 4 7 . . 2 . 4 . . . . 2 . Electromagnetic 4 | . . . . . . . . . . . . . . . 4 Robot Hit Streak 15 | . 10 10 14 15 4 . 6 . . . . . . . 8 Robot Miss Streak 3 | . 3 3 3 2 . . . . . . . . . . 1 Penetration Max . | . . . . . . . . . . . . . . . . Secondary Targets 1 | . 1 . . . . . . . . . . . . . . Max Gunslinging Chain 1 | . 1 . . . . . . . . . . . . . . Shots Hit Robots 287 | . 125 34 54 41 3 . 19 6 2 . . . . . 3 Core Hits 168 | . 41 49 27 27 3 . 9 4 2 . . . . 2 4 Critical Kills 1 | . . . . 1 . . . . . . . . . . . Critical Parts Destroyed . | . . . . . . . . . . . . . . . . Critical Strikes 10 | . 4 . . 1 . . 4 . . . . . . . 1 Burn 4 | . 4 . . . . . . . . . . . . . . Meltdown 1 | . . . . 1 . . . . . . . . . . . Corrupt 1 | . . . . . . . . . . . . . . . 1 Sever 4 | . . . . . . . 4 . . . . . . . . Melee Attacks 74 | . . . . 12 . . 33 11 9 . 6 3 . . . Impact 12 | . . . . 12 . . . . . . . . . . . Slashing 62 | . . . . . . . 33 11 9 . 6 3 . . . Piercing . | . . . . . . . . . . . . . . . . Sneak Attacks 8 | . . . . . . . 6 1 1 . . . . . . Combat Hostiles . | . . . . . . . . . . . . . . . . Follow-up Attacks . | . . . . . . . . . . . . . . . . Damage Inflicted 8069 | . 1545 1581 1453 1551 76 . 1080 351 139 . . . . 185 108 Guns 2318 | . 1516 149 457 196 . . . . . . . . . . . Cannons 1522 | . . 103 582 721 76 . . . . . . . . . 40 Explosions 2680 | . . 1317 414 634 . . 107 . . . . . . 185 23 Melee 1463 | . . . . . . . 973 351 139 . . . . . . Ramming 86 | . 29 12 . . . . . . . . . . . . 45 Kinetic 937 | . 177 107 457 196 . . . . . . . . . . . Thermal 2886 | . 1339 145 582 721 76 . . . . . . . . . 23 Explosive 2657 | . . 1317 414 634 . . 107 . . . . . . 185 . Electromagnetic 40 | . . . . . . . . . . . . . . . 40 Impact . | . . . . . . . . . . . . . . . . Slashing 1463 | . . . . . . . 973 351 139 . . . . . . Piercing . | . . . . . . . . . . . . . . . . Highest Corruption 6 | . . . . . . . . 4 . . . . . . 6 Average Corruption 4 | . . . . . . . . 4 . . . . . . 4 Corruption Purged . | . . . . . . . . . . . . . . . . Corruption Blocked . | . . . . . . . . . . . . . . . . Effects 16 | . . . . . . . . 13 . . . . . . 3 Message Errors 6 | . . . . . . . . 4 . . . . . . 2 Matter Fused 2 | . . . . . . . . 1 . . . . . . 1 Heat Flow Errors 2 | . . . . . . . . 2 . . . . . . . Energy Discharges 3 | . . . . . . . . 3 . . . . . . . Data Loss (minor) 1 | . . . . . . . . 1 . . . . . . . Data Loss (major) 1 | . . . . . . . . 1 . . . . . . . Alerts 1 | . . . . . . . . 1 . . . . . . . Overload Shots . | . . . . . . . . . . . . . . . . Overflow Damage 234 | . . 15 23 54 . . 89 21 . . . . . 32 . Projectiles 4 | . . . . 4 . . . . . . . . . . . Explosions 120 | . . 15 23 50 . . . . . . . . . 32 . Melee 110 | . . . . . . . 89 21 . . . . . . . Knockbacks . | . . . . . . . . . . . . . . . . Impact . | . . . . . . . . . . . . . . . . Kinetic . | . . . . . . . . . . . . . . . . Secondary . | . . . . . . . . . . . . . . . . Self-Inflicted Damage 167 | . . 44 . 24 . . . . 45 . . . . . 54 Shots 10 | . . 4 . 1 . . . . 4 . . . . . 1 Rammed 19 | . 6 3 . . . . . . . . . . . . 10 Targets Rammed 21 | . 8 3 . . . . . . . . . . . . 10 Kicked . | . . . . . . . . . . . . . . . . Crushed 2 | . 2 . . . . . . . . . . . . . . Highest Temperature 302 | . 243 297 302 237 102 . 28 217 7 1 116 1 . . 15 Average Temperature 78 | . 70 71 121 74 46 . 15 73 1 1 65 1 . . 11 Received Heat Transfer 1262 | . 369 204 248 153 27 . . . . 18 27 72 . 18 126 Effects 6 | . 2 . 3 . . . . 1 . . . . . . . Energy Bleed 2 | . . . 1 . . . . 1 . . . . . . . Interference 4 | . 2 . 2 . . . . . . . . . . . . Siege Activations . | . . . . . . . . . . . . . . . . Robots Corrupted . | . . . . . . . . . . . . . . . . Combat Hostiles . | . . . . . . . . . . . . . . . . Parts Fried . | . . . . . . . . . . . . . . . . Impact Corruptions . | . . . . . . . . . . . . . . . . Robots Melted 1 | . . . . 1 . . . . . . . . . . . Combat Hostiles . | . . . . . . . . . . . . . . . . Parts Melted 12 | . 6 1 2 3 . . . . . . . . . . . Heat Transferred 6722 | . 3674 298 1150 1400 150 . . . . . . . . . 50 Parts Sabotaged . | . . . . . . . . . . . . . . . . Parts Stolen . | . . . . . . . . . . . . . . . . Parts Stripped . | . . . . . . . . . . . . . . . . Power Chain Reactions 1 | . . . . . . . . . . . . . . . 1 Alert | -11 -10 -9 -8 -8 -8 -8 -6 -5 -4 -4 -4 -4 -4 -3 -2 ------- Run | Yrd Mat Mat Mat Sto Rec Scr Fac Fac Fac Ext Cet Arc Hub Res Res Peak Influence 635 | . 422 335 438 635 157 . 220 164 146 106 57 87 30 198 250 Initial 115 | . . 115 111 105 33 . . 53 12 71 42 22 20 15 . Average 181 | . 219 216 269 317 61 . 91 86 83 77 44 63 22 78 71 Maximum Alert Level 2 | . 2 1 2 2 . . 1 . . . . . . . 1 Low Security (%) 55 | 100 38 22 15 29 100 . 88 100 100 100 100 100 100 100 86 Level 1 35 | . 53 77 77 32 . . 11 . . . . . . . 13 Level 2 8 | . 7 . 7 38 . . . . . . . . . . . Level 3 . | . . . . . . . . . . . . . . . . Level 4 . | . . . . . . . . . . . . . . . . Level 5 . | . . . . . . . . . . . . . . . . High Security . | . . . . . . . . . . . . . . . . Max Security . | . . . . . . . . . . . . . . . . Squads Dispatched 19 | . 3 3 . 3 . . 3 2 . . 1 . . 2 2 Investigation 5 | . 2 1 . . . . . . . . 1 . . 1 . Extermination 4 | . . . . . . . 1 2 . . . . . 1 . Reinforcement 10 | . 1 2 . 3 . . 2 . . . . . . . 2 Assault . | . . . . . . . . . . . . . . . . Garrison . | . . . . . . . . . . . . . . . . Intercept . | . . . . . . . . . . . . . . . . Searches Triggered . | . . . . . . . . . . . . . . . . Construction Impeded 1 | . . . . 1 . . . . . . . . . . . Haulers Reinforced 2 | . . . . . . . 2 . . . . . . . . Active Scanning Responses . | . . . . . . . . . . . . . . . . Cargo Convoy Interrupts . | . . . . . . . . . . . . . . . . Stealth | -11 -10 -9 -8 -8 -8 -8 -6 -5 -4 -4 -4 -4 -4 -3 -2 --------- Run | Yrd Mat Mat Mat Sto Rec Scr Fac Fac Fac Ext Cet Arc Hub Res Res Distress Signals 11 | . . 3 . 5 . . . . . . 1 . . . 2 Communications Jammed . | . . . . . . . . . . . . . . . . Distress Signals . | . . . . . . . . . . . . . . . . Times Spotted 197 | . 39 28 20 30 5 . 14 4 3 4 6 4 . 6 34 Peak Tracking Total 15 | . 9 4 7 7 2 . 3 2 1 4 5 4 . 4 15 Tactical Retreats 25 | . 5 1 1 2 . . 7 . . . . . . 2 7 Traps | -11 -10 -9 -8 -8 -8 -8 -6 -5 -4 -4 -4 -4 -4 -3 -2 ------- Run | Yrd Mat Mat Mat Sto Rec Scr Fac Fac Fac Ext Cet Arc Hub Res Res Traps Triggered 8 | . 1 1 . . . . 1 3 . . . . . . 2 Indirectly . | . . . . . . . . . . . . . . . . Trap Hack Attempts 3 | . . . . . . . . 3 . . . . . . . Triggered 1 | . . . . . . . . 1 . . . . . . . Disarmed . | . . . . . . . . . . . . . . . . Reprogrammed . | . . . . . . . . . . . . . . . . Reused . | . . . . . . . . . . . . . . . . Traps Extracted . | . . . . . . . . . . . . . . . . Installed . | . . . . . . . . . . . . . . . . Triggered . | . . . . . . . . . . . . . . . . Machines | -11 -10 -9 -8 -8 -8 -8 -6 -5 -4 -4 -4 -4 -4 -3 -2 ---------- Run | Yrd Mat Mat Mat Sto Rec Scr Fac Fac Fac Ext Cet Arc Hub Res Res Machines Disabled 16 | . . 4 4 6 . . . . . . 1 1 . . . Max in Single Turn 2 | . . 1 2 2 . . . . . . 1 1 . . . Machines Repaired . | . . . . . . . . . . . . . . . . Machines Dismantled 1 | . . . . 1 . . . . . . . . . . . Machines Sabotaged . | . . . . . . . . . . . . . . . . Overloaded Fab Kills . | . . . . . . . . . . . . . . . . Hacking | -11 -10 -9 -8 -8 -8 -8 -6 -5 -4 -4 -4 -4 -4 -3 -2 --------- Run | Yrd Mat Mat Mat Sto Rec Scr Fac Fac Fac Ext Cet Arc Hub Res Res Machines Accessed 70 | . 6 10 5 3 10 3 9 6 4 . 3 1 2 3 5 Terminals 41 | . 5 9 3 2 4 . 6 2 3 . 3 . 2 . 2 Fabricators 3 | . . . . . . . . 2 . . . . . 1 . Repair Stations 9 | . 1 1 1 1 . . 2 1 . . . . . 1 1 Recycling Units 8 | . . . 1 . 6 . . . . . . . . . 1 Scanalyzers 3 | . . . . . . . 1 1 . . . . . . 1 Garrison Access 2 | . . . . . . . . . 1 . . . . 1 . Total Hacks 174 | . 14 29 13 6 15 7 19 25 7 . 7 5 9 7 11 Successful 104 | . 5 16 7 3 8 7 10 17 3 . 5 5 8 2 8 Failed 69 | . 8 13 6 3 7 . 9 8 4 . 2 . 1 5 3 Catastrophic 8 | . 2 1 . 1 . . 2 1 1 . . . . . . Database Lockouts 1 | . 1 . . . . . . . . . . . . . . Manual 87 | . 14 20 7 3 14 . 12 4 2 . . . 7 . 4 Terminals 104 | . 12 27 7 4 9 . 14 6 5 . 7 . 9 . 4 Fabricators 8 | . . . . . . . . 3 . . . . . 5 . Repair Stations 17 | . 2 2 2 2 . . 4 3 . . . . . 1 1 Recycling Units 12 | . . . 4 . 6 . . . . . . . . . 2 Scanalyzers 18 | . . . . . . . 1 13 . . . . . . 4 Garrison Access 3 | . . . . . . . . . 2 . . . . 1 . Terminal Hacks 41 | . 2 6 . 1 . 7 3 1 2 . 5 5 7 . 2 Record 18 | . . . . . . 6 . . . . 4 5 3 . . Part Schematic 1 | . 1 . . . . . . . . . . . . . . Robot Analysis 1 | . . 1 . . . . . . . . . . . . . Prototype ID Bank 1 | . . 1 . . . . . . . . . . . . . Open Door 2 | . . . . . . . . . 1 . 1 . . . . Open DSF 1 | . . . . . . . 1 . . . . . . . . Level Access Points 2 | . . . . . . . . . . . . . 1 . 1 Branch Access Points 3 | . . . . . . . . . 1 . . . 1 . 1 Fabricator Index 1 | . . . . . . . 1 . . . . . . . . Scanalyzer Index 1 | . . . . . . . 1 . . . . . . . . Unreport Threat 2 | . . 1 . 1 . . . . . . . . . . . Locate Traps 1 | . . . . . . . . . . . . . 1 . . Recall Investigation 1 | . . 1 . . . . . . . . . . . . . Recall Extermination 1 | . . . . . . . . 1 . . . . . . . Hauler Manifests 1 | . . 1 . . . . . . . . . . . . . Registered Components 1 | . 1 . . . . . . . . . . . . . . Registered Prototypes 1 | . . 1 . . . . . . . . . . . . . Zone Layout 1 | . . . . . . . . . . . . . 1 . . Derelict Proto ID Bank 1 | . . . . . . 1 . . . . . . . . . Fabricator Hacks 5 | . . . . . . . . 3 . . . . . 2 . Network Status 1 | . . . . . . . . 1 . . . . . . . Load Schematic 2 | . . . . . . . . 1 . . . . . 1 . Build 2 | . . . . . . . . 1 . . . . . 1 . Repair Station Hacks 13 | . 1 2 2 2 . . 4 2 . . . . . . . Scan Component 7 | . 1 1 1 1 . . 2 1 . . . . . . . Repair 6 | . . 1 1 1 . . 2 1 . . . . . . . Recycling Unit Hacks 5 | . . . 3 . . . . . . . . . . . 2 Process 2 | . . . 1 . . . . . . . . . . . 1 Report Inventory 1 | . . . 1 . . . . . . . . . . . . Retrieve Matter 2 | . . . 1 . . . . . . . . . . . 1 Scanalyzer 12 | . . . . . . . . 10 . . . . . . 2 Insert Component 5 | . . . . . . . . 4 . . . . . . 1 Analyze 7 | . . . . . . . . 6 . . . . . . 1 Garrison Access Hacks . | . . . . . . . . . . . . . . . . Unauthorized Hacks 28 | . 2 8 2 . 8 . 3 1 1 . . . 1 . 2 Terminals 22 | . 2 8 2 . 2 . 3 1 1 . . . 1 . 2 Assimilate 2 | . . . . . . . . . 1 . . . . . 1 Botnet 18 | . 2 6 2 . 2 . 3 1 . . . . 1 . 1 Operators 1 | . . 1 . . . . . . . . . . . . . Skim 1 | . . 1 . . . . . . . . . . . . . Fabricators . | . . . . . . . . . . . . . . . . Repair Stations . | . . . . . . . . . . . . . . . . Recycling Units 6 | . . . . . 6 . . . . . . . . . . Tunnel 6 | . . . . . 6 . . . . . . . . . . Scanalyzers . | . . . . . . . . . . . . . . . . Garrison Access . | . . . . . . . . . . . . . . . . Data Cores Recovered 1 | . . . . . . . 1 . . . . . . . . Used . | . . . . . . . . . . . . . . . . Hacking Detections 55 | . 6 10 5 4 4 . 7 5 3 . 2 . 2 3 4 Full Trace Events 3 | . 1 . . . . . . . . . 1 . . 1 . Feedback Events . | . . . . . . . . . . . . . . . . Feedback Blocked . | . . . . . . . . . . . . . . . . Robot Schematics Acquired . | . . . . . . . . . . . . . . . . Robots Built . | . . . . . . . . . . . . . . . . Authchips . | . . . . . . . . . . . . . . . . Time . | . . . . . . . . . . . . . . . . Total Robot Build Rating . | . . . . . . . . . . . . . . . . Part Schematics Acquired 4 | . 1 . . . . . . 2 . . . . . . 1 Parts Built 2 | . . . . . . . . 1 . . . . . 1 . Authchips 1 | . . . . . . . . 1 . . . . . . . Time 174 | . . . . . . . . 116 . . . . . 58 . Total Part Build Rating 6 | . . . . . . . . 3 . . . . . 3 . Parts Repaired 6 | . . 1 1 1 . . 2 1 . . . . . . . Time 178 | . . 26 32 44 . . 51 25 . . . . . . . Parts Recycled . | . . . . . . . . . . . . . . . . Recycled Matter 29 | . . . 29 . . . . . . . . . . . . Retrieved Matter 29 | . . . 29 . . . . . . . . . . . . Retrieved Components . | . . . . . . . . . . . . . . . . Parts Scanalyzed 4 | . . . . . . . . 3 . . . . . . 1 Part Schematics Acquired 3 | . . . . . . . . 2 . . . . . . 1 Parts Damaged . | . . . . . . . . . . . . . . . . Bothacking | -11 -10 -9 -8 -8 -8 -8 -6 -5 -4 -4 -4 -4 -4 -3 -2 ------------ Run | Yrd Mat Mat Mat Sto Rec Scr Fac Fac Fac Ext Cet Arc Hub Res Res Used RIF Installer . | . . . . . . . . . . . . . . . . Robots Hacked . | . . . . . . . . . . . . . . . . Non-combat . | . . . . . . . . . . . . . . . . Combat . | . . . . . . . . . . . . . . . . Robot Hacks Applied . | . . . . . . . . . . . . . . . . Relay Couplers Released . | . . . . . . . . . . . . . . . . Fabnet Peak Effective % . | . . . . . . . . . . . . . . . . Robots Rewired 1 | . . . . . 1 . . . . . . . . . . Allies Hacked . | . . . . . . . . . . . . . . . . Hacks Repelled . | . . . . . . . . . . . . . . . . Allies | -11 -10 -9 -8 -8 -8 -8 -6 -5 -4 -4 -4 -4 -4 -3 -2 -------- Run | Yrd Mat Mat Mat Sto Rec Scr Fac Fac Fac Ext Cet Arc Hub Res Res Total Allies 3 | . . . . . 1 . . . 1 . . . . . 1 Largest Group 1 | . . . . . 1 1 1 . 1 1 . . . . 1 Highest-Rated Group 26 | . . . . . 15 15 15 . 26 26 . . . . 10 Highest-Rated Ally 26 | . . . . . 15 15 15 . 26 26 . . . . 10 Total Orders 1 | . . . . . . . 1 . . . . . . . . STAY 1 | . . . . . . . 1 . . . . . . . . Ally Attacks 4 | . . . . . 3 . 1 . . . . . . . . Total Damage 102 | . . . . . 88 . 14 . . . . . . . . Kills 1 | . . . . . 1 . . . . . . . . . . Allies Corrupted . | . . . . . . . . . . . . . . . . Allies Melted . | . . . . . . . . . . . . . . . . Intel | -11 -10 -9 -8 -8 -8 -8 -6 -5 -4 -4 -4 -4 -4 -3 -2 ------- Run | Yrd Mat Mat Mat Sto Rec Scr Fac Fac Fac Ext Cet Arc Hub Res Res Robot Analysis Total 1 | . . 1 . . . . . . . . . . . . . Derelict Logs Recovered . | . . . . . . . . . . . . . . . . Drone Launches . | . . . . . . . . . . . . . . . . Drone Recoveries . | . . . . . . . . . . . . . . . . Exploration | -11 -10 -9 -8 -8 -8 -8 -6 -5 -4 -4 -4 -4 -4 -3 -2 ------------- Run | Yrd Mat Mat Mat Sto Rec Scr Fac Fac Fac Ext Cet Arc Hub Res Res Turns Passed 12429 | 68 1338 1599 1101 1767 1013 2461 908 527 170 91 250 48 43 631 414 Spaces Moved 9768 | 45 547 835 536 500 565 1432 1794 1019 443 283 251 102 97 597 722 Core 132 | 13 . . . . . . 1 107 . . . . . . 11 Treads 4447 | 32 547 835 536 500 565 1432 . . . . . . . . . Legs . | . . . . . . . . . . . . . . . . Wheels . | . . . . . . . . . . . . . . . . Hover . | . . . . . . . . . . . . . . . . Flight 5189 | . . . . . . . 1793 912 443 283 251 102 97 597 711 Fastest Speed 23 | 50 160 160 160 170 170 170 23 23 23 23 26 26 32 30 26 Average Speed 91 | 129 160 160 165 170 170 170 23 33 23 24 26 28 32 31 35 Slowest Speed 600 | 160 160 160 240 170 170 170 150 350 23 26 26 32 32 32 600 Overloaded Moves . | . . . . . . . . . . . . . . . . Propulsion Burnouts . | . . . . . . . . . . . . . . . . Robots Hopped 55 | . . . . . . . 12 4 2 . 1 4 1 6 25 Cave-ins Triggered . | . . . . . . . . . . . . . . . . Exploration Rate (%) 50 | 5 76 72 38 69 90 91 42 27 11 52 90 86 19 7 30 Regions Visited 15 Branch Regions 7 Pre-discovered Areas 6 | . . . . . 6 . . . . . . . . . . Known Exits Taken 10 | . . . . . 1 1 1 1 1 1 1 1 1 1 . Unknown Exits Taken 5 | 1 1 1 1 1 . . . . . . . . . . . Scrap Searched 3 | . . . . . . 3 . . . . . . . . . Spaces Dug 38 | . . . . 1 3 . 14 2 17 . . 1 . . . Terrain Destroyed 267 | . . 107 9 58 3 . 45 2 17 . . 1 . 19 6 Melee 21 | . . . . . . . 14 2 4 . . 1 . . . Projectile 14 | . . . 3 8 3 . . . . . . . . . . AOE 232 | . . 107 6 50 . . 31 . 13 . . . . 19 6 Terrain Rammed . | . . . . . . . . . . . . . . . . Walls Destroyed . | . . . . . . . . . . . . . . . . Machines Disabled . | . . . . . . . . . . . . . . . . Actions | -11 -10 -9 -8 -8 -8 -8 -6 -5 -4 -4 -4 -4 -4 -3 -2 --------- Run | Yrd Mat Mat Mat Sto Rec Scr Fac Fac Fac Ext Cet Arc Hub Res Res Total 12722 | 52 838 1036 681 1318 615 1461 2218 1186 488 304 423 112 107 1034 849 Wait 2288 | . 143 82 66 704 30 19 336 130 26 17 163 11 12 429 120 Move 9646 | 44 546 834 535 499 564 1431 1769 1010 438 282 248 94 94 584 674 Hop 52 | . . . . . . . 12 4 2 . 1 3 1 6 23 Pick Up 63 | 2 9 12 6 7 6 4 4 4 1 1 . . . 3 4 Fast Attach 84 | 6 6 16 7 13 . 1 11 9 3 2 1 . . 4 5 Attach 29 | . 2 2 . . 1 1 11 3 1 1 1 . . 1 5 Detach 23 | . 2 5 1 1 . 1 4 4 1 . . 1 . 1 2 Swap 33 | . 2 7 7 10 . . 2 . 2 . 2 . . . 1 Drop 103 | . 8 18 14 19 6 4 18 8 1 1 1 . . 4 1 Fire 278 | . 112 57 45 45 6 . 3 . 4 . . . . 2 4 Melee 74 | . . . . 12 . . 33 11 9 . 6 3 . . . Ram 10 | . . . . . . . . . . . . . . . 10 Kick . | . . . . . . . . . . . . . . . . Crush 11 | . 8 3 . . . . . . . . . . . . . Escape Stasis 15 | . . . . . . . 15 . . . . . . . . Rewire 2 | . . . . . 2 . . . . . . . . . . Trap 3 | . . . . . . . . 3 . . . . . . . Miscellaneous 8 | . . . . 8 . . . . . . . . . . . Route ------- -11/Scrapyard -10/Materials (discovered 3 exits: *Mat x2 / [*Min]) -9/Materials (discovered 3 exits: *Mat x2 / [*Min]) -8/Materials -8/Storage -8/Recycling -8/Scraptown (discovered 2 exits: *Fac x2) -6/Factory -5/Factory -4/Factory (discovered 5 exits: Upp x2 / *Ext x2 / Arm) -4/Extension (discovered 2 exits: *Res / *Cet) -4/Cetus (discovered 2 exits: *Res / *Arc) -4/Archives (discovered 2 exits: *Res / *Hub) -4/Hub_04(d) (discovered 4 exits: *Res x4) -3/Research -2/Research (discovered 5 exits: Acc x3 / Tes x2) History --------- Turn | Location | Event 6 | -11/Scrapyard | Discovered new exit (range 14) 69 | -11/Scrapyard | Entered Materials 211 | -10/Materials | Discovered new exit (range 16) 355 | -10/Materials | Build established: Mutant 618 | -10/Materials | Core integrity fell below 50% 633 | -10/Materials | Destroyed 8 combat bots 724 | -10/Materials | Discovered new exit (range 16) 979 | -10/Materials | Central database locked down 1125 | -10/Materials | Discovered new exit (range 16) 1407 | -10/Materials | Entered another Materials area 1407 | -9/Materials | Evolved 2 slots: Propulsion x1, Utility x1 1677 | -9/Materials | Discovered new exit (range 13) 2224 | -9/Materials | Repaired Grenade Launcher 2733 | -9/Materials | Discovered new exit (range 16) 2993 | -9/Materials | Discovered new exit (range 8) 3006 | -9/Materials | Entered another Materials area 3006 | -8/Materials | Evolved 2 slots: Propulsion x1, Utility x1 3141 | -8/Materials | Repaired Med. Armor Plating 3462 | -8/Materials | Discovered new exit (range 7) 4107 | -8/Materials | Entered Storage 5142 | -8/Storage | Met 01-MTF 5407 | -8/Storage | Repaired Plasma Cannon 5867 | -8/Storage | Used back door to open Recycling access 5867 | -8/Storage | Discovered new exit (range 5) 5874 | -8/Storage | Entered Recycling 5874 | -8/Recycling | Accompanied by 1 ally (01-MTF) 6073 | -8/Recycling | Scanned before Scraplab entrance 6880 | -8/Recycling | Discovered new exit (range 3) 6886 | -8/Recycling | Identified exit to Scraptown 6887 | -8/Recycling | Entered Scraptown 6887 | -8/Scraptown | Accompanied by 1 ally 7018 | -8/Scraptown | Visited UFD Registry 7018 | -8/Scraptown | Registered with UFD as "Nukeflow" 7095 | -8/Scraptown | Visited Derelict Rescue Squad 7205 | -8/Scraptown | Visited Junk Repository 7343 | -8/Scraptown | Discovered new exit (range 5) 7357 | -8/Scraptown | Identified exit to Factory 7411 | -8/Scraptown | Visited Scrapoid Pod Storage 7451 | -8/Scraptown | Found Scrapoid Pod 7480 | -8/Scraptown | Visited Botcube Research 7524 | -8/Scraptown | Visited Research Penetration Think Tank 7660 | -8/Scraptown | Visited Chapter 10 7710 | -8/Scraptown | Visited Science Guys 7776 | -8/Scraptown | Visited DA-N13 Charitable Foundation 7783 | -8/Scraptown | Found DCF Scrap (30 items) 8297 | -8/Scraptown | Visited Symbiants 8753 | -8/Scraptown | Heard Great Nut preacher, LISTEN AND RECITE! 8841 | -8/Scraptown | Visited SPCMW 8879 | -8/Scraptown | Visited Spacefarers 9242 | -8/Scraptown | Discovered exit to Factory (range 7) 9348 | -8/Scraptown | Entered Factory 9348 | -6/Factory | Accompanied by 1 ally 9348 | -6/Factory | Evolved 4 slots: Propulsion x1, Utility x3 9606 | -6/Factory | Repaired VTOL Module? 9779 | -6/Factory | Repaired Cesium-ion Thruster 9929 | -6/Factory | Spotted B-75 Beast 10223 | -6/Factory | Discovered new exit (range 7) 10226 | -6/Factory | Identified exit to Factory 10256 | -6/Factory | Entered another Factory area 10256 | -5/Factory | Evolved 2 slots: Power x1, Utility x1 10477 | -5/Factory | Fabricated Imp. VTOL Module (x1) 10682 | -5/Factory | Repaired Imp. Reaction Control System 10717 | -5/Factory | Discovered new exit (range 3) 10718 | -5/Factory | Identified exit to Factory 10783 | -5/Factory | Entered another Factory area 10783 | -4/Factory | Evolved 2 slots: Utility x2 10873 | -4/Factory | Identified exit to Upper Caves 10873 | -4/Factory | Identified exit to Extension 10873 | -4/Factory | Identified exit to Armory 10953 | -4/Factory | Entered Extension 10953 | -4/Extension | Accompanied by 1 ally 11003 | -4/Extension | Spotted B-86 Titan 11005 | -4/Extension | Spotted B-86 Titan 11028 | -4/Extension | Discovered new exit (range 22) 11028 | -4/Extension | Discovered new exit (range 22) 11034 | -4/Extension | Identified exit to Cetus 11042 | -4/Extension | Lost 3 parts (1p1n1u) 11044 | -4/Extension | Entered Cetus 11137 | -4/Cetus | Build established: Hacker-Scout 11163 | -4/Cetus | Spotted Cetus Guard 11163 | -4/Cetus | Spotted Cetus Guard 11163 | -4/Cetus | Spotted Cetus Guard 11163 | -4/Cetus | Spotted Cetus Guard 11173 | -4/Cetus | Discovered new exit (range 21) 11178 | -4/Cetus | Identified exit to Research 11288 | -4/Cetus | Discovered new exit (range 22) 11293 | -4/Cetus | Identified exit to Archives 11294 | -4/Cetus | Entered Archives 11303 | -4/Archives | Unable to access archive contents 11310 | -4/Archives | Unable to access archive contents 11310 | -4/Archives | Discovered exit to Research (range 16) 11334 | -4/Archives | Discovered new exit (range 20) 11337 | -4/Archives | Unable to access archive contents 11342 | -4/Archives | Identified exit to Hub_04(d) 11342 | -4/Archives | Entered Hub_04(d) 11368 | -4/Hub_04(d) | Lost 4 parts (2n1u1w) 11375 | -4/Hub_04(d) | Discovered exit to Research (range 10) 11378 | -4/Hub_04(d) | Spotted B-86 Titan 11385 | -4/Hub_04(d) | Entered Research 11385 | -3/Research | Evolved 2 slots: Utility x1, Weapon x1 11638 | -3/Research | Fabricated Imp. VTOL Module? 11708 | -3/Research | Discovered new exit (range 5) 11709 | -3/Research | Identified exit to Research 12016 | -3/Research | Entered another Research area 12016 | -2/Research | Evolved 2 slots: Propulsion x1, Utility x1 12073 | -2/Research | Spotted B-90 Cyclops 12310 | -2/Research | Identified exit to Testing 12310 | -2/Research | Identified exit to Access 12345 | -2/Research | Lost 6 parts (1n2u3w) 12350 | -2/Research | Spotted B-90 Cyclops 12413 | -2/Research | Core integrity fell below 50% 12424 | -2/Research | Core integrity fell below 20% 12430 | -2/Research | Destroyed by S-43 Plague with Heavy Machine Gun Last Messages --------------- 12419_ Slug penetrates Wall. 12420_ Hacking Suite destroyed. 12420_ Triggered Fusion Bomb Trap. 12420_ An explosion rips through the floor. 12422_ Acquired 11 matter. 12422_ Imp. Q-thruster destroyed. 12422_ Knocked back. 12422_ S-43 Plague system corrupted by crushing effect. 12422_ S-43 Plague destroyed. 12423_ Imp. Hacking Suite severed. 12423_ Slammed into C-57 Dissector. 12424_ P-80 Master resets P-80 Master, system corruption cleaned. 12424_ Slammed into C-57 Dissector. 12424_ Destabilizing: Core damaged (-29). 12425_ LSR1K478JT&VUQ=DTWCKKBQIBUKN3K 3 12425_ Slammed into C-57 Dissector. 12426_ Hacking Suite severed. 12426_ Slammed into C-57 Dissector. 12426_ Destabilizing: Core damaged (-43). 12427_ Slammed into C-57 Dissector. Map ----- +----------------------------------------------------+ | | | | | | | ????????????#############????????????????????????? | | ????????????# #????????????????????????? | | ????????????# ###################??????? | | ????????????# ! # = # #??????? | | ????????????# # # ! #??????? | | ????????????#! # # #??????? | | ????????????# = # """ # #??????? | | ????????????# # """ # #??????? | | ????????????#######+##### " " # #??????? | | ?????????????????# + # #??????? | | ?????????????????# #### # #??????? | | ?????????#####???# #??# ????????? | | ?????????# !??# % #??### ##+########### | | ?????????# ?## ##????# " | | ?????????# # ! #???## ## | | ?????????# # ##### ## | | ?????????# + * H p%% ## | | ?????????# # ##;p# ###### #? | | ?????????######## ### ## #????# #??? | | ????????????????#######?#s## =####?# #### | | ????????????????????????# ## # ]?# | | ????????????????????????# ## """ # # | | ????????????????????????#@## """ # ! # | | ????????????????????????#c## """ # + """" | | ????????????????????????# ##! # ## """" | | ????????????????????????# ## # !?# """" | | ????????????????????????# ## # * ??# | | ????????????????????????# ########### ??# | | ????????????????????????# #?????????#] ???# | | ????????????????????????# #?????????###???# ##### | | ????????????????????????#c#???????????????# #???# | | ????????????????????????#k#???????????????# #???## | | ????????????????????????# #???????????????# #????? | | ????????????????????????# #???????????????# #????? | | ????????????????????????# #??????????????? ????? | | ????????????????????????? ???????????????? ????? | | ??